Cogmind - Beta 15 @@@ ROGUE MODE // 2025.06.03 @ 20:01:50 Player: Beosis Result: Destroyed by S-10 Pest with Light Assault Rifle Performance ------------- Evolutions (1) 500 Regions Visited (3) 600 Robots Destroyed (38) 190 Value Destroyed (896) 896 Prototype IDs (3) 60 Alien Tech Used (0) 0 Bonus (0) 0 TOTAL SCORE: 2246 Bonus ------- None Cogmind --------- Core Integrity 0/400 Matter 300/300 Energy 242/250 System Corruption 5% Temperature Cool (0) Movement Core (200) Ox3 Location -9/Mines Parts ------- > --- POWER (1) -------- Ion Engine > --- PROPULSION (4) --- (None) > --- UTILITY (2) ------ Small Storage Unit Visual Processing Unit > --- WEAPON (2) ------- (None) > --- INVENTORY (8) ---- Improved Heat Sink Improved Targeting Computer Weapon Shielding System Shield System Shield Assault Cannon Proton Bomb Trap Peak State ------------ > --- POWER ------------ Light Ion Engine > --- PROPULSION ------- Aluminum Leg Aluminum Leg Aluminum Leg Aluminum Leg > --- UTILITY ---------- Small Storage Unit Visual Processing Unit > --- WEAPON ----------- Improved EM Shotgun Beam Rifle > --- INVENTORY -------- Ion Engine Improved Heat Sink Terrain Scan Processor Terrain Scan Processor Tractor Beam Light Assault Rifle Heavy Assault Rifle Improved Light Cannon [Rating: 14] Favorites ----------- Power Light Ion Engine Engine Light Ion Engine Propulsion Aluminum Leg Leg Aluminum Leg Wheel Compact Wheel Utility Small Storage Unit Device Tractor Beam Storage Small Storage Unit Processor Visual Processing Unit Protection Light Armor Plating Weapon Light Assault Rifle Energy Gun Improved EM Shotgun Ballistic Gun Light Assault Rifle Ballistic Cannon Improved Light Cannon Build | -11 -10 -9 -9 ------- Run | Yrd Mat Mat Min Slots Evolved 2 | . . 2 . Power . | . . . . Propulsion 2 | . . 2 . Utility . | . . . . Weapon . | . . . . Parts Attached 34 | 6 7 20 1 Power 6 | 1 1 3 1 Engine 6 | 1 1 3 1 Core . | . . . . Reactor . | . . . . Propulsion 12 | 2 2 8 . Treads . | . . . . Leg 10 | 2 . 8 . Wheel 2 | . 2 . . Hover . | . . . . Flight . | . . . . Utility 4 | 1 2 1 . Device 1 | . 1 . . Storage 1 | 1 . . . Processor 1 | . . 1 . Hackware . | . . . . Protection 1 | . 1 . . Artifact . | . . . . Weapon 12 | 2 2 8 . Energy Gun 5 | 1 . 4 . Energy Cannon . | . . . . Ballistic Gun 6 | 1 2 3 . Ballistic Cannon 1 | . . 1 . Launcher . | . . . . Special Weapon . | . . . . Impact Weapon . | . . . . Slashing Weapon . | . . . . Piercing Weapon . | . . . . Special Melee Weapon . | . . . . Unidentified Prototypes 1 | . . 1 . Parts Lost 19 | . 4 15 . Power 3 | . 1 2 . Propulsion 10 | . 1 9 . Utility 1 | . . 1 . Weapon 5 | . 2 3 . Highest Loss Streak 5 | . 4 5 . To Critical Strikes 1 | . 1 . . Average Backups 5 | 1 . 6 6 Power . | . . . . Propulsion . | . . . . Utility 3 | . . 3 5 Weapon 1 | . . 1 1 Tool/Special . | . . . . Unused Backups 9 | . . 3 6 Power . | . . . . Propulsion . | . . . . Utility 8 | . . 3 5 Weapon 1 | . . . 1 Tool/Special . | . . . . Average Slot Usage (%) 85 | . 86 88 24 Engine 10 | . 13 10 2 Leg 30 | . 16 35 . Wheel 2 | . 10 1 . Storage 11 | . 14 11 11 Processor 6 | . . 7 11 Protection 2 | . 1 2 . Energy Gun 6 | . 7 7 . Ballistic Gun 10 | . 18 8 . Ballistic Cannon 3 | . . 3 . Peak Build Rating 14 | 6 7 14 5 Average Rating 9 | 3 6 11 4 On Entrance 4 | . 6 7 4 Naked Turns . | . . . . Heaviest Build 16 | 11 13 16 10 Greatest Support 40 | 20 32 40 3 Greatest Overweight (x) 3 | . . 1 3 Average Overweight (x) . | . . . 1 Largest Inventory Capacity 8 | 8 8 8 8 Average Capacity 7 | 6 8 8 8 Most Carried 8 | 5 3 8 8 Average Carried 5 | 1 . 6 7 Final Capacity 8 | 8 8 8 8 Final Carried 7 | . 3 7 7 Class Distribution -------------------- 77% | Scavenger-Mutant 22% | Mutant Dominant Class ---------------- Mutant | -10/Materials Scavenger-Mutant | -9/Materials Mutant | -9/Mines Resources | -11 -10 -9 -9 ----------- Run | Yrd Mat Mat Min Matter Collected 971 | 214 143 586 28 Remotely 124 | . 55 69 . Salvage Created 1166 | . 254 912 . Parts 90 | . 18 72 . Haulers Intercepted 2 | . . 2 . Recyclers Shooed 4 | . 2 2 . Parts Field Recycled . | . . . . Retrieved Matter . | . . . . Parts Self-Destructed . | . . . . Prevented . | . . . . Kills | -11 -10 -9 -9 ------- Run | Yrd Mat Mat Min Combat Hostiles Destroyed 29 | . 5 24 . Guns 17 | . 5 12 . Cannons 10 | . . 10 . AOE 2 | . . 2 . Classes Destroyed 6 | . 4 2 . Hauler 2 | . . 2 . Recycler 3 | . 2 1 . Watcher 4 | . 1 3 . Swarmer 12 | . 4 8 . Grunt 11 | . 1 10 . Sentry 6 | . . 6 . Best Kill Streak 5 | . 4 5 . Combat Bots Only 4 | . 3 4 . Max Kills in Single Turn 2 | . 2 2 . Gunslinging . | . . . . Exploded 2 | . . 2 . Melee . | . . . . Uniques/NPCs Destroyed . | . . . . Combat | -11 -10 -9 -9 -------- Run | Yrd Mat Mat Min Hostile Shots Fired 259 | . 68 174 17 Missed 76 | . 19 55 2 Hits 183 | . 49 119 15 Melee 5 | . . 5 . Projectile 178 | . 49 114 15 Critical Strikes 6 | . 3 2 1 Damage Taken 2270 | . 596 1545 129 Core 573 | . 167 307 99 Absorbed by Shields . | . . . . Core Remaining (%) 66 | 100 33 . . Volleys Fired 137 | . 30 107 . Largest 2 | . 2 2 . Hottest 101 | . 60 101 . Shots Fired 256 | . 59 197 . Gun 206 | . 59 147 . Cannon 50 | . . 50 . Launcher . | . . . . Special . | . . . . Kinetic 170 | . 36 134 . Thermal 49 | . 23 26 . Explosive . | . . . . Electromagnetic 37 | . . 37 . Robot Hit Streak 13 | . 4 13 . Robot Miss Streak 7 | . 4 7 . Penetration Max . | . . . . Secondary Targets 3 | . 2 1 . Max Gunslinging Chain 1 | . 1 1 . Shots Hit Robots 149 | . 25 124 . Core Hits 67 | . 9 58 . Critical Kills . | . . . . Critical Parts Destroyed . | . . . . Critical Strikes 3 | . . 3 . Burn 2 | . . 2 . Blast 1 | . . 1 . Melee Attacks . | . . . . Impact . | . . . . Slashing . | . . . . Piercing . | . . . . Sneak Attacks . | . . . . Combat Hostiles . | . . . . Follow-up Attacks . | . . . . Damage Inflicted 2371 | . 281 2090 . Guns 1496 | . 281 1215 . Cannons 680 | . . 680 . Explosions 185 | . . 185 . Melee . | . . . . Ramming 10 | . . 10 . Kinetic 1479 | . 169 1310 . Thermal 499 | . 112 387 . Explosive . | . . . . Electromagnetic 383 | . . 383 . Impact . | . . . . Slashing . | . . . . Piercing . | . . . . Highest Corruption 5 | . 2 5 5 Average Corruption 4 | . 2 5 5 Corruption Purged . | . . . . Corruption Blocked . | . . . . Effects 24 | . 1 21 2 Message Errors 5 | . . 4 1 Matter Fused 5 | . . 4 1 Heat Flow Errors 7 | . 1 6 . Energy Discharges 3 | . . 3 . Misfires 2 | . . 2 . Alerts 1 | . . 1 . Weapon Failures 1 | . . 1 . Overload Shots . | . . . . Overflow Damage 36 | . . 36 . Projectiles 12 | . . 12 . Explosions 24 | . . 24 . Melee . | . . . . Knockbacks 8 | . . 8 . Impact . | . . . . Kinetic 6 | . . 6 . Secondary 2 | . . 2 . Self-Inflicted Damage 76 | . . 76 . Shots 2 | . . 2 . Rammed 1 | . . 1 . Targets Rammed 4 | . . 4 . Kicked 3 | . . 3 . Crushed . | . . . . Highest Temperature 261 | . 181 261 . Average Temperature 42 | . 59 41 . Received Heat Transfer 501 | . 36 465 . Siege Activations . | . . . . Martial Activations . | . . . . Shielding Activations . | . . . . Robots Disrupted . | . . . . Combat Hostiles . | . . . . Robots Corrupted . | . . . . Combat Hostiles . | . . . . Parts Fried 1 | . . 1 . Impact Corruptions . | . . . . Robots Melted . | . . . . Combat Hostiles . | . . . . Parts Melted 4 | . . 4 . Heat Transferred 1166 | . 250 916 . Parts Sabotaged . | . . . . Parts Stolen . | . . . . Parts Stripped . | . . . . Power Chain Reactions 3 | . . 3 . Alert | -11 -10 -9 -9 ------- Run | Yrd Mat Mat Min Maximum Alert Level 1 | . . 1 . Low Security (%) 83 | 100 100 79 100 Level 1 16 | . . 20 . Level 2 . | . . . . Level 3 . | . . . . Level 4 . | . . . . Level 5 . | . . . . High Security . | . . . . Max Security . | . . . . Peak Influence 249 | . 75 249 88 Initial 83 | . . 8 83 Average 106 | . 24 129 72 Influence Increases 979 | . 152 822 5 Destroy 0b10 Robot/C 580 | . 100 480 . Destroy 0b10 Robot/NC 45 | . 15 30 . Destroy Leader 142 | . 22 120 . Successful Hack 12 | . . 7 5 Disable Machine 30 | . . 30 . Destroy Structure 20 | . . 20 . Lose Combat Pursuer 150 | . 15 135 . Influence Decreases 931 | . 132 628 171 Entered New Map 143 | . . 12 131 Time Decay 618 | . 92 486 40 Lost Part 170 | . 40 130 . Squads Dispatched 4 | . 2 2 . Investigation . | . . . . Extermination . | . . . . Reinforcement 4 | . 2 2 . Assault . | . . . . Garrison . | . . . . Intercept . | . . . . Searches Triggered . | . . . . Construction Impeded . | . . . . Haulers Reinforced . | . . . . Active Scanning Responses . | . . . . Cargo Convoy Interrupts . | . . . . Stealth | -11 -10 -9 -9 --------- Run | Yrd Mat Mat Min Distress Signals 4 | . . 4 . Communications Jammed . | . . . . Distress Signals . | . . . . Times Spotted 56 | . 13 39 4 Peak Tracking Total 5 | . 4 5 4 Tactical Retreats 5 | . 1 4 . Traps | -11 -10 -9 -9 ------- Run | Yrd Mat Mat Min Traps Triggered 1 | . 1 . . Indirectly . | . . . . Trap Hack Attempts . | . . . . Triggered . | . . . . Disarmed . | . . . . Reprogrammed . | . . . . Reused . | . . . . Traps Extracted . | . . . . Installed . | . . . . Triggered . | . . . . Most Traps Carried 1 | . . . 1 Machines | -11 -10 -9 -9 ---------- Run | Yrd Mat Mat Min Machines Disabled 2 | . . 2 . Max in Single Turn 1 | . . 1 . Machines Repaired . | . . . . Machines Dismantled . | . . . . Machines Sabotaged . | . . . . Overloaded Fab Kills . | . . . . Hacking | -11 -10 -9 -9 --------- Run | Yrd Mat Mat Min Machines Accessed 7 | . 1 5 1 Terminals 7 | . 1 5 1 Fabricators . | . . . . Repair Stations . | . . . . Recycling Units . | . . . . Scanalyzers . | . . . . Garrison Access . | . . . . Total Hacks 9 | . 3 5 1 Successful 9 | . 3 5 1 Failed . | . . . . Catastrophic . | . . . . Database Lockouts . | . . . . Manual . | . . . . Terminals 9 | . 3 5 1 Fabricators . | . . . . Repair Stations . | . . . . Recycling Units . | . . . . Scanalyzers . | . . . . Garrison Access . | . . . . Terminal Hacks 9 | . 3 5 1 Record 1 | . . 1 . Prototype ID Bank 1 | . 1 . . Alert Level 2 | . 1 1 . Locate Traps 1 | . 1 . . Investigation Status 1 | . . 1 . Hauler Manifests 1 | . . 1 . Zone Layout 2 | . . 1 1 Fabricator Hacks . | . . . . Repair Station Hacks . | . . . . Recycling Unit Hacks . | . . . . Scanalyzer . | . . . . Garrison Access Hacks . | . . . . Unauthorized Hacks . | . . . . Terminals . | . . . . Fabricators . | . . . . Repair Stations . | . . . . Recycling Units . | . . . . Scanalyzers . | . . . . Garrison Access . | . . . . Data Cores Recovered . | . . . . Used . | . . . . Hacking Detections 3 | . 1 1 1 Full Trace Events . | . . . . Feedback Events . | . . . . Feedback Blocked . | . . . . Robot Schematics Acquired . | . . . . Robots Built . | . . . . Authchips . | . . . . Time . | . . . . Total Robot Build Rating . | . . . . Part Schematics Acquired . | . . . . Parts Built . | . . . . Authchips . | . . . . Time . | . . . . Total Part Build Rating . | . . . . Parts Repaired . | . . . . Time . | . . . . Parts Recycled . | . . . . Recycled Matter . | . . . . Retrieved Matter . | . . . . Retrieved Components . | . . . . Parts Scanalyzed . | . . . . Part Schematics Acquired . | . . . . Parts Damaged . | . . . . Bothacking | -11 -10 -9 -9 ------------ Run | Yrd Mat Mat Min Used RIF Installer . | . . . . Robots Hacked . | . . . . Non-combat . | . . . . Combat . | . . . . Robot Hacks Applied . | . . . . Relay Couplers Released . | . . . . Fabnet Peak Effective % . | . . . . Robots Rewired . | . . . . Allies Hacked . | . . . . Hacks Repelled . | . . . . Allies | -11 -10 -9 -9 -------- Run | Yrd Mat Mat Min Total Allies . | . . . . Largest Group . | . . . . Highest-Rated Group . | . . . . Highest-Rated Ally . | . . . . Total Orders . | . . . . Ally Attacks . | . . . . Total Damage . | . . . . Kills . | . . . . Allies Corrupted . | . . . . Allies Melted . | . . . . Intel | -11 -10 -9 -9 ------- Run | Yrd Mat Mat Min Active Infowar (turns) 1030 | . . 950 80 Optics 1030 | . . 950 80 Robot Analysis Total . | . . . . Derelict Logs Recovered . | . . . . Drone Launches . | . . . . Drone Recoveries . | . . . . Exploration | -11 -10 -9 -9 ------------- Run | Yrd Mat Mat Min Turns Passed 1772 | 45 289 1358 80 Spaces Moved 966 | 44 162 690 70 Core 166 | 26 . 70 70 Treads . | . . . . Legs 686 | 18 84 584 . Wheels 114 | . 78 36 . Hover . | . . . . Flight . | . . . . Fastest Speed 50 | 50 100 100 100 Average Speed 113 | 78 110 117 111 Slowest Speed 200 | 120 120 190 200 Overloaded Moves . | . . . . Propulsion Burnouts . | . . . . Robots Hopped . | . . . . Potential Cave-ins . | . . . . Cave-ins Triggered . | . . . . Exploration Rate (%) 24 | 3 24 50 20 Regions Visited 3 Branch Regions 1 Pre-discovered Areas . | . . . . Known Exits Taken . | . . . . Unknown Exits Taken 3 | 1 1 1 . Scrap Searched 1 | . . . 1 Spaces Dug . | . . . . Terrain Destroyed 18 | . . 18 . Melee . | . . . . Projectile 4 | . . 4 . AOE 14 | . . 14 . Terrain Rammed . | . . . . Walls Destroyed . | . . . . Machines Disabled . | . . . . Actions | -11 -10 -9 -9 --------- Run | Yrd Mat Mat Min Total 1395 | 54 214 1055 72 Wait 201 | . 8 193 . Move 963 | 43 161 689 70 Hop . | . . . . Pick Up 38 | 5 8 24 1 Fast Attach 6 | 1 . 5 . Attach 23 | 5 5 12 1 Detach . | . . . . Swap 9 | . 2 7 . Drop 14 | . . 14 . Fire 137 | . 30 107 . Melee . | . . . . Ram 1 | . . 1 . Kick 3 | . . 3 . Crush . | . . . . Escape Stasis . | . . . . Rewire . | . . . . Trap . | . . . . Miscellaneous . | . . . . Route ------- -11/Scrapyard -10/Materials -9/Materials -9/Mines History --------- Turn | Location | Event 5 | -11/Scrapyard | Discovered new exit (range 15) 46 | -11/Scrapyard | Entered Materials 208 | -10/Materials | Core integrity fell below 50% 238 | -10/Materials | Lost 4 parts (1p1n2w) 286 | -10/Materials | Discovered new exit (range 15) 335 | -10/Materials | Entered another Materials area 335 | -9/Materials | Evolved 2 slots: Propulsion x2 730 | -9/Materials | Build established: Scavenger-Mutant 764 | -9/Materials | Discovered new exit (range 12) 1328 | -9/Materials | Core integrity fell below 50% 1614 | -9/Materials | Lost 5 parts (1p3n1w) 1693 | -9/Materials | Entered Mines 1714 | -9/Mines | Found a hidden stash of uninstalled traps 1760 | -9/Mines | Core integrity fell below 20% 1773 | -9/Mines | Destroyed by S-10 Pest with Light Assault Rifle Last Messages --------------- Something is scanning the area. K-01 Serf collects debris. Connecting with Terminal... Current location identified: Mines >>Layout(Zone) Retrieving Zone 2D layout... Downloaded map data. K-01 Serf collects debris. A stash of uninstalled traps is collected here! K-01 Serf collects debris. Acquired Proton Bomb Trap. K-01 Serf collects debris. System corrupted: Matter fused (-8). K-01 Serf collects debris. S-10 Pest destroyed. Searching scrap... Found 34 Matter. Found 57 Matter. Acquired 28 matter. XVFNWIPJEHP